Cogmind - Beta 9.6 @@@ ROGUE MODE // 2020.09.01 @ 21:14:15 Player: Plexion Result: Destroyed by as-04045 with Assembled Rifle Performance ------------- Evolutions (0) 0 Regions Visited (2) 400 Robots Destroyed (17) 85 Value Destroyed (384) 384 Prototype IDs (0) 0 Alien Tech Used (0) 0 Bonus (0) 0 TOTAL SCORE: 869 Bonus ------- None Cogmind --------- Core Integrity 0/250 Matter 159/300 Energy 100/100 System Corruption 7% Temperature Cool (0) Movement Treading (160) Location -10/Mines Parts ------- > --- POWER (1) -------- (None) > --- PROPULSION (2) --- Improved Treads Improved Treads > --- UTILITY (2) ------ Large Storage Unit Large Storage Unit > --- WEAPON (2) ------- Assault Rifle Mining Laser > --- INVENTORY (16) --- Light Nuclear Core Light Treads Improved Treads Improved Treads Medium Storage Unit Medium Storage Unit Light Armor Plating Particle Gun Shotgun Shotgun Peak State ------------ > --- POWER ------------ Ion Engine > --- PROPULSION ------- Improved Treads Improved Treads > --- UTILITY ---------- Small Storage Unit Targeting Computer > --- WEAPON ----------- Shotgun Shotgun > --- INVENTORY -------- Light Treads Improved Treads Improved Treads Light Armor Plating Shotgun Shotgun [Rating: 12] Favorites ----------- Power Ion Engine Engine Ion Engine Propulsion Improved Treads Treads Improved Treads Utility Large Storage Unit Storage Large Storage Unit Processor Targeting Computer Weapon Shotgun Energy Gun EM Pulse Gun Ballistic Gun Shotgun Special Weapon Mining Laser Build | -11 -10 -10 ------- Run | Scr Mat Min Slots Evolved . | . . . Power . | . . . Propulsion . | . . . Utility . | . . . Weapon . | . . . Parts Attached 17 | 6 7 4 Power 1 | 1 . . Engine 1 | 1 . . Core . | . . . Reactor . | . . . Propulsion 4 | 2 2 . Treads 4 | 2 2 . Leg . | . . . Wheel . | . . . Hover . | . . . Flight . | . . . Utility 4 | 1 3 . Device . | . . . Storage 3 | 1 2 . Processor 1 | . 1 . Hackware . | . . . Protection . | . . . Artifact . | . . . Weapon 8 | 2 2 4 Energy Gun 1 | 1 . . Energy Cannon . | . . . Ballistic Gun 5 | 1 2 2 Ballistic Cannon . | . . . Launcher . | . . . Special Weapon 2 | . . 2 Impact Weapon . | . . . Slashing Weapon . | . . . Piercing Weapon . | . . . Special Melee Weapon . | . . . Unidentified Prototypes . | . . . Parts Lost 3 | . . 3 Power 1 | . . 1 Propulsion . | . . . Utility . | . . . Weapon 2 | . . 2 Highest Loss Streak 3 | . . 3 Average Slot Usage (%) 99 | . 99 99 Engine 13 | . 14 13 Treads 28 | . 28 28 Storage 20 | . 16 28 Processor 7 | . 11 . Energy Gun 3 | . 4 . Ballistic Gun 24 | . 23 26 Naked Turns . | . . . Heaviest Build 43 | 13 43 43 Greatest Support 46 | 40 46 46 Greatest Overweight (x) . | . . . Average Overweight (x) . | . . . Largest Inventory Capacity 16 | 6 16 16 Average Capacity 10 | 5 7 16 Most Carried 12 | 2 10 12 Average Carried 6 | . 5 10 Final Capacity 16 | 6 16 16 Final Carried 10 | 2 10 10 Class Distribution -------------------- 100% | Mutant Dominant Class ---------------- Mutant | -10/Materials Mutant | -10/Mines Resources | -11 -10 -10 ----------- Run | Scr Mat Min Matter Collected 616 | 205 136 275 Remotely . | . . . Salvage Created 527 | . 289 238 Parts 32 | . 23 9 Haulers Intercepted 1 | . 1 . Recyclers Shooed . | . . . Parts Field Recycled . | . . . Retrieved Matter . | . . . Parts Self-Destructed . | . . . Prevented . | . . . Kills | -11 -10 -10 ------- Run | Scr Mat Min Combat Hostiles Destroyed 14 | . 8 6 Guns 13 | . 7 6 AOE 1 | . 1 . Classes Destroyed 6 | . 5 1 Builder 1 | . 1 . Hauler 1 | . 1 . Watcher 1 | . 1 . Swarmer 5 | . 5 . Grunt 8 | . 3 5 Assembled 1 | . . 1 Best Kill Streak 3 | . 3 2 Combat Bots Only 3 | . 3 2 Max Kills in Single Turn 2 | . 2 1 Gunslinging 1 | . 1 . Exploded 1 | . 1 . Melee . | . . . Uniques/NPCs Destroyed . | . . . Combat | -11 -10 -10 -------- Run | Scr Mat Min Damage Taken 972 | . 275 697 Core 253 | . 76 177 Absorbed by Shields . | . . . Core Remaining (%) 100 | 100 . . Volleys Fired 61 | . 30 31 Largest 2 | . 2 2 Hottest 123 | . 60 123 Shots Fired 115 | . 60 55 Gun 112 | . 60 52 Cannon . | . . . Launcher . | . . . Special 3 | . . 3 Kinetic 105 | . 53 52 Thermal 3 | . . 3 Explosive . | . . . Electromagnetic 7 | . 7 . Robot Hit Streak 12 | . 8 12 Robot Miss Streak 4 | . 4 3 Penetration Max . | . . . Secondary Targets 2 | . 2 . Max Gunslinging Chain 1 | . 1 . Shots Hit Robots 86 | . 44 42 Core Hits 34 | . 18 16 Critical Hits 1 | . 1 . Critical Kills . | . . . Critical Parts Destroyed 1 | . 1 . Melee Attacks . | . . . Impact . | . . . Slashing . | . . . Piercing . | . . . Sneak Attacks . | . . . Combat Hostiles . | . . . Follow-up Attacks . | . . . Damage Inflicted 1191 | . 611 580 Guns 1103 | . 526 577 Cannons . | . . . Explosions 85 | . 85 . Melee . | . . . Ramming 3 | . . 3 Kinetic 1020 | . 443 577 Thermal 85 | . 85 . Explosive . | . . . Electromagnetic 83 | . 83 . Impact . | . . . Slashing . | . . . Piercing . | . . . Highest Corruption 7 | . . 7 Average Corruption 7 | . . 7 Corruption Purged . | . . . Effects 3 | . . 3 Heat Flow Errors 1 | . . 1 Data Loss (major) 1 | . . 1 Weapon Failures 1 | . . 1 Overload Shots . | . . . Overflow Damage . | . . . Projectiles . | . . . Explosions . | . . . Melee . | . . . Knockbacks . | . . . Impact . | . . . Kinetic . | . . . Secondary . | . . . Self-Inflicted Damage . | . . . Shots . | . . . Rammed 1 | . . 1 Targets Rammed 1 | . . 1 Kicked . | . . . Crushed . | . . . Highest Temperature 171 | . 57 171 Average Temperature 30 | . 29 30 Received Heat Transfer 264 | . 72 192 Siege Activations . | . . . Robots Corrupted . | . . . Combat Hostiles . | . . . Parts Fried . | . . . Impact Corruptions . | . . . Robots Melted . | . . . Combat Hostiles . | . . . Parts Melted . | . . . Heat Transferred 100 | . 100 . Parts Sabotaged . | . . . Parts Stolen . | . . . Parts Stripped . | . . . Power Chain Reactions 1 | . 1 . Missiles Intercepted . | . . . Alert | -11 -10 -10 ------- Run | Scr Mat Min Peak Influence 147 | . 147 128 Average Influence 65 | . 70 67 Maximum Alert Level . | . . . Low Security (%) 100 | 100 100 100 Level 1 . | . . . Level 2 . | . . . Level 3 . | . . . Level 4 . | . . . Level 5 . | . . . High Security . | . . . Max Security . | . . . Squads Dispatched . | . . . Investigation . | . . . Extermination . | . . . Reinforcement . | . . . Assault . | . . . Garrison . | . . . Intercept . | . . . Construction Impeded . | . . . Haulers Reinforced . | . . . Stealth | -11 -10 -10 --------- Run | Scr Mat Min Distress Signals 3 | . 2 1 Communications Jammed . | . . . Distress Signals . | . . . Times Spotted 28 | . 20 8 Peak Tracking Total 5 | . 5 2 Tactical Retreats 4 | . 4 . Traps | -11 -10 -10 ------- Run | Scr Mat Min Traps Triggered . | . . . Indirectly . | . . . Trap Hack Attempts . | . . . Triggered . | . . . Disarmed . | . . . Reprogrammed . | . . . Reused . | . . . Traps Extracted . | . . . Installed . | . . . Triggered . | . . . Machines | -11 -10 -10 ---------- Run | Scr Mat Min Machines Disabled . | . . . Max in Single Turn . | . . . Machines Sabotaged . | . . . Garrisons Compromised . | . . . Overloaded Fab Kills . | . . . Fab Network Shutdowns . | . . . Hacking | -11 -10 -10 --------- Run | Scr Mat Min Machines Accessed 2 | . 2 . Terminals 2 | . 2 . Fabricators . | . . . Repair Stations . | . . . Recycling Units . | . . . Scanalyzers . | . . . Garrison Access . | . . . Total Hacks 3 | . 3 . Successful 1 | . 1 . Failed 2 | . 2 . Catastrophic . | . . . Database Lockouts . | . . . Manual 3 | . 3 . Terminals 3 | . 3 . Fabricators . | . . . Repair Stations . | . . . Recycling Units . | . . . Scanalyzers . | . . . Garrison Access . | . . . Terminal Hacks 1 | . 1 . Zone Layout 1 | . 1 . Fabricator Hacks . | . . . Repair Station Hacks . | . . . Recycling Unit Hacks . | . . . Scanalyzer . | . . . Garrison Access Hacks . | . . . Unauthorized Hacks . | . . . Terminals . | . . . Fabricators . | . . . Repair Stations . | . . . Recycling Units . | . . . Scanalyzers . | . . . Garrison Access . | . . . Data Cores Recovered . | . . . Used . | . . . Hacking Detections 2 | . 2 . Full Trace Events . | . . . Feedback Events . | . . . Feedback Blocked . | . . . Robot Schematics Acquired . | . . . Robots Built . | . . . Matter . | . . . Time . | . . . Total Robot Build Rating . | . . . Part Schematics Acquired . | . . . Parts Built . | . . . Matter . | . . . Time . | . . . Total Part Build Rating . | . . . Parts Repaired . | . . . Time . | . . . Parts Recycled . | . . . Recycled Matter . | . . . Retrieved Matter . | . . . Retrieved Components . | . . . Parts Scanalyzed . | . . . Part Schematics Acquired . | . . . Parts Damaged . | . . . Bothacking | -11 -10 -10 ------------ Run | Scr Mat Min Used RIF Installer . | . . . Robots Hacked . | . . . Non-combat . | . . . Combat . | . . . Robot Hacks Applied . | . . . Relay Couplers Released . | . . . Robots Rewired . | . . . Allies Hacked . | . . . Hacks Repelled . | . . . Allies | -11 -10 -10 -------- Run | Scr Mat Min Total Allies . | . . . Largest Group . | . . . Highest-Rated Group . | . . . Highest-Rated Ally . | . . . Total Orders . | . . . Ally Attacks . | . . . Total Damage . | . . . Kills . | . . . Allies Corrupted . | . . . Allies Melted . | . . . Intel | -11 -10 -10 ------- Run | Scr Mat Min Robot Analysis Total . | . . . Derelict Logs Recovered . | . . . Drone Launches . | . . . Drone Recoveries . | . . . Exploration | -11 -10 -10 ------------- Run | Scr Mat Min Turns Passed 1431 | 81 913 437 Spaces Moved 739 | 48 494 197 Core 5 | 5 . . Treads 734 | 43 494 197 Legs . | . . . Wheels . | . . . Hover . | . . . Flight . | . . . Fastest Speed 50 | 50 160 160 Average Speed 159 | 148 160 160 Slowest Speed 160 | 160 160 160 Overloaded Moves . | . . . Propulsion Burnouts . | . . . Robots Hopped . | . . . Cave-ins Triggered 1 | . . 1 Exploration Rate (%) 44 | 4 89 39 Regions Visited 2 Branch Regions 1 Pre-discovered Areas . | . . . Known Exits Taken . | . . . Unknown Exits Taken 2 | 1 1 . Scrap Searched . | . . . Spaces Dug 3 | . . 3 Terrain Destroyed 7 | . 4 3 Melee . | . . . Projectile 3 | . . 3 AOE 4 | . 4 . Actions | -11 -10 -10 --------- Run | Scr Mat Min Total 870 | 55 560 255 Wait 30 | . 10 20 Move 737 | 47 493 197 Hop . | . . . Pick Up 15 | 2 11 2 Fast Attach 9 | 6 3 . Attach 2 | . . 2 Detach 1 | . 1 . Swap 6 | . 4 2 Drop 8 | . 8 . Fire 61 | . 30 31 Melee . | . . . Ram . | . . . Kick . | . . . Crush 1 | . . 1 Escape Stasis . | . . . Rewire . | . . . Trap . | . . . Miscellaneous . | . . . Route ------- -11/Scrapyard -10/Materials (discovered 5 exits: [*Mat x3] / [*Min x2]) -10/Mines History --------- Turn | Location | Event 5 | -11/Scrapyard | Discovered new exit (range 14) 82 | -11/Scrapyard | Entered Materials 279 | -10/Materials | Discovered new exit (range 5) 309 | -10/Materials | Discovered new exit (range 15) 311 | -10/Materials | Build established: Mutant 562 | -10/Materials | Discovered new exit (range 16) 674 | -10/Materials | Discovered new exit (range 15) 717 | -10/Materials | Discovered new exit (range 14) 995 | -10/Materials | Entered Mines 1014 | -10/Mines | Core integrity fell below 50% 1235 | -10/Mines | Assembled infested the area 1240 | -10/Mines | Assisted by a Guerilla fighting off Assembled 1406 | -10/Mines | Crushed by falling debris 1406 | -10/Mines | Core integrity fell below 20% 1432 | -10/Mines | Destroyed by as-04045 with Assembled Rifle Last Messages --------------- way!" 01250_ Slammed into U-05 Engineer. 01250_ K-01 Serf collects debris. 01362_ G-34 Mercenary destroyed. 01371_ G-47 Trooper destroyed. 01374_ Acquired 40 matter. 01375_ Acquired 51 matter. 01391_ Acquired Particle Gun. 01406_ The unstable cave ceiling collapses. 01406_ Crushed by falling debris. 01406_ Shotgun destroyed. 01406_ System corrupted by crushing effect (+3). 01406_ Shotgun destroyed. 01406_ System corrupted by crushing effect (+4). 01409_ System corrupted: Assault Rifle jammed. 01417_ System corrupted: Heat flow error (+181). 01424_ as-79976 destroyed. 01427_ Acquired 16 matter. 01428_ Ion Engine destroyed. 01432_ System corrupted: Substantial component data lost. Map ----- +----------------------------------------------------+ | ?????????????????????????????????## ==!#?????# """ | | ??????????????????????????????????##* ##?????# """ | | ???????????????????????????????????# =#??????# | | ???????????????????????????????????# #??????# | | ??????????????????????????????????## #??????# | | ?????????????????????????????????## #??????##### | | ?????????????????????????????????# #??????????? | | ?????????????????????????????????# #??????????? | | ?????????????????????????????????# ##?????????? | | ?????????????????????????????????## #?????????? | | ??????????????????????????????????## #???????### | | ???????????????????????????????????## #???????# | | ????????????????????????????????????# ##???????# | | ????????????????????????????????????# #??#####?# | | ????????????????????#############???# #??# ?? | | ????????????????????# ##### #### #???# | | ????????????????????# """ """ ## #???# | | ????????????????????# """ """ ## ####### ##### | | ????????????????????# """ """ ## #?????# ## | | ????????????????????# =! ## #?????###### #? | | ????????????????????######### #### #??????????# #? | | ????????????????????????????#*#### #??????????# ## | | ???????????????????????????## #??????????# | | ????????????????# ???????## #######??????????# ## | | ?????????????????# ####;##??????????????? #? | | ????????????????????# @ ##??????????????? #? | | ????????????????????## #?????????????? #? | | ?????????????????????## #???????????? ##? | | ??????????????????????# ##???????????## #??? | | ??????????????????????# ##?????????????## #???? | | ?????????????????????? #???????????????###????? | | ?????????????????????# ##??????????????????????? | | ?????????????????????# a#????????????????????????? | | ?????????????????????# ?????????????????????????? | | ????????????????????? ?????????????????????????? | | ????????????????????# ?????????? ????????? | | ????????????????????## ?????????? #### | | ?????????????????????##??????????? | | ??????????????????????????????????# ### | | ??????????????????????????????????# "### | | ??????????????????????????????????? | | ???????????????????????????????????# | | ????????????????????????????????????# #### | | ????????????????????????????????????## ????? | | ?????????????????????????????????????# ??????? | | ?????????????????????????????????????# ???????? | | ?????????????????????????????????????# ?????????? | | ?????????????????????????????????????????????????? | | ?????????????????????????????????????????????????? | | ?????????????????????????????????????????????????? | +----------------------------------------------------+ Best States ------------- Heat Dissipation 25 Energy Generation 10 Energy Capacity 250 Matter Stores 279 Matter Capacity 300 Sight Range 16 Terrain Scan Density 10 Evasion (%) 40 Targeting Accuracy 5 Recoil Reduction 2 Item Schematics ----------------- None Robot Schematics ------------------ None Fabricated ------------ Nothing Alien Tech Used ----------------- None Achievements -------------- None Challenges ------------ None Game ------ Seed BarrageRagnarokShifter Manual? 0 Play Time 00:07:59 Cumulative 112.0 hours Start 2020.09.01 @ 21:08:15 End 2020.09.01 @ 21:14:15 Sessions 1 Manual Loads 0 Difficulty Rogue Special Mode None Game No. 131 Rogue 44 Adventurer 87 Explorer 0 Win Type - Total 4 Types 3/0/0/1/0/0/0 Lore% 53 Gallery% 64 Achievement% 55 Wizard Run 0 Options --------- ASCII 0 Keyboard 1 Movement Numpad Keybinds 0 Fullscreen 1 Font 18/Smallcaps Map View 76x50 Tactical HUD 1 Map Filters NONE Filters NONE Steam 1 RUN: aaced735-1027-4136-bed4-f7895d563961